bitfinex/quotes_ETHUSD_20240715
["timestamp","ask_amount","ask_price","bid_price","bid_amount"]
[1721031311862,0.6234946,3365.1,3364.9,0.06697391]
[1721031312610,2.3479,3365.0,3364.9,0.06697391]
[1721031313055,3.28305336,3365.0,3364.9,0.06697391]
[1721031313351,1.485,3364.8,3364.7,1.7]
[1721031313645,2.10858747,3364.8,3364.7,1.76705691]
[1721031314248,1.485,3364.8,3364.7,1.76705691]
[1721031314544,4.5949681,3364.8,3364.7,1.76705691]
[1721031315244,3.9714,3364.8,3364.7,1.76705691]
[1721031317111,5.67214099,3364.8,3364.7,1.76705691]
[1721031317351,7.98523456,3364.8,3364.7,1.76705691]
[1721031317524,2.4529,3364.4,3364.3,1.7]
[1721031317730,3.38850063,3364.4,3364.3,1.7]
[1721031318058,2.4529,3364.4,3364.3,1.76725929]
[1721031318469,3.38833372,3364.4,3364.3,1.76725929]
[1721031318672,3.21497967,3364.4,3364.3,1.76725929]
[1721031318968,4.90440749,3364.4,3364.3,1.76725929]
[1721031319120,6.1517275,3364.4,3364.3,1.76725929]
[1721031319573,5.12330954,3364.4,3364.3,1.76725929]
[1721031320242,2.4529,3364.4,3364.3,1.76725929]
[1721031320620,3.38790119,3364.4,3364.3,1.76725929]
[1721031320839,4.68364395,3364.4,3364.3,1.76725929]
[1721031321042,0.62330588,3364.4,3364.3,1.76725929]
[1721031321256,0.62326653,3364.4,3364.3,1.76725929]
[1721031321418,0.62326653,3364.4,3364.3,1.99058052]
[1721031321936,0.93499295,3364.5,3364.3,1.76725929]
[1721031324317,0.9347609,3364.5,3364.3,1.76725929]
[1721031324944,0.6231072,3364.4,3364.3,1.76725929]
[1721031326339,0.6231072,3364.5,3364.3,2.31725929]
[1721031326653,0.6231072,3364.5,3364.3,2.59558052]
[1721031327552,0.6231072,3364.6,3364.4,0.55]
[1721031328055,0.6231072,3364.6,3364.5,0.06300867]
[1721031328525,0.6231072,3364.7,3364.5,0.61300867]
[1721031328720,0.6231072,3364.8,3364.7,1.7]
[1721031328964,0.6231072,3364.8,3364.7,2.25]
[1721031329120,0.6231072,3364.8,3364.7,2.31291748]
[1721031332237,0.6231072,3365.0,3364.7,2.31291748]
[1721031333123,0.6231072,3365.0,3364.7,2.85015292]
[1721031333765,0.6231072,3365.0,3364.8,0.55]
[1721031334131,0.6231072,3365.0,3364.9,0.0628263]
[1721031335480,2.2848,3365.0,3364.9,0.0628263]
[1721031335694,3.2195609,3365.0,3364.9,0.0628263]
[1721031335834,3.2195609,3365.0,3364.7,1.7]
[1721031336038,0.6231614,3364.9,3364.7,1.7]
[1721031336354,2.1081614,3364.9,3364.8,0.06282645]
[1721031336727,2.10816286,3364.9,3364.7,1.7]
[1721031336930,2.10816286,3364.9,3364.8,0.06282645]
[1721031337167,2.10816444,3364.9,3364.8,0.06282645]
[1721031337373,2.10816444,3364.9,3364.7,1.7]
[1721031337667,2.10816444,3364.9,3364.8,0.06282645]
[1721031337871,3.86186844,3364.9,3364.8,0.06282645]
[1721031338052,4.723704,3364.9,3364.7,1.7]
[1721031338242,0.62318954,3364.8,3364.7,1.7]
[1721031338556,0.62318954,3364.8,3364.7,2.25]
[1721031344936,3.05448954,3364.9,3364.7,2.25]
[1721031345134,3.05448954,3364.9,3364.8,0.55]
[1721031345585,2.4313,3364.9,3364.8,0.55]
[1721031345740,0.62318954,3365.0,3364.8,0.55]
[1721031352875,2.4713,3364.9,3364.8,0.55]
[1721031353375,2.4713,3364.9,3364.8,0.61280101]
[1721031353998,3.09442271,3364.9,3364.8,0.61280101]
[1721031354495,2.4713,3364.9,3364.8,0.61280101]
[1721031354786,3.40598407,3364.9,3364.8,0.61280101]
[1721031355002,5.51970702,3364.9,3364.8,0.06280101]
[1721031355156,6.85950725,3364.9,3364.7,1.7]
[1721031355348,6.2326843,3364.8,3364.7,1.7]
[1721031355681,7.2231057,3364.8,3364.7,1.7]
[1721031355885,6.19486682,3364.8,3364.7,1.7]
[1721031356193,5.97698112,3364.8,3364.7,1.7]
[1721031358959,7.47698112,3364.8,3364.7,1.7]
[1721031359190,6.4486214,3364.8,3364.7,1.76087917]
[1721031359359,7.47696244,3364.8,3364.7,1.76087917]
[1721031359585,3.50154104,3364.8,3364.7,1.76087917]
[1721031359904,4.43634185,3364.8,3364.7,1.76087917]
[1721031360208,3.40800081,3364.8,3364.7,1.76087917]
[1721031361475,2.4732,3364.8,3364.7,1.76087917]
[1721031361879,0.62314543,3364.9,3364.7,2.31087917]
[1721031362109,0.62314543,3364.9,3364.8,0.55]
[1721031362409,0.62314543,3365.0,3364.8,0.55]
[1721031362588,0.62314543,3365.0,3364.8,0.6108863]
[1721031363108,0.62314543,3364.9,3364.8,0.6108863]
[1721031363815,0.62314543,3365.0,3364.8,0.6108863]
[1721031364165,0.62314543,3364.9,3364.8,0.6108863]
[1721031368413,0.62314543,3364.9,3364.8,0.84197493]
[1721031370409,4.71366644,3365.1,3364.8,0.84197493]
[1721031370410,0.62314543,3365.0,3364.8,0.84197493]
[1721031370785,2.2939,3365.1,3364.8,0.84197493]
[1721031370786,2.91704543,3365.1,3364.8,0.84197493]
[1721031371116,2.91704543,3365.1,3364.8,0.9014078]
[1721031371318,0.62314543,3365.1,3364.8,0.9014078]
[1721031372699,0.62314543,3365.1,3364.9,0.26014078]
[1721031372881,0.93476644,3365.2,3365.1,1.7]
[1721031373411,1.24635526,3365.3,3365.1,2.31064956]
[1721031373591,0.93536576,3365.2,3365.1,2.31064956]
[1721031373800,1.24635526,3365.3,3365.1,2.31064956]
[1721031374007,0.93533778,3365.2,3365.1,2.31064956]
[1721031374403,0.93533778,3365.2,3365.1,2.56482338]
[1721031374711,0.62351149,3365.2,3365.1,2.56482338]
[1721031374915,0.62351149,3365.4,3365.1,2.56482338]
[1721031375077,0.62351149,3365.4,3365.2,0.55]
[1721031375614,0.62351149,3365.4,3365.3,0.06055932]
[1721031375774,0.62351149,3365.4,3365.3,0.61055932]
[1721031376195,0.62351149,3365.4,3365.3,0.55]
[1721031376393,0.93533778,3365.6,3365.1,1.7]
[1721031376394,0.62351149,3365.5,3365.2,0.55]
[1721031376934,0.62351149,3365.5,3365.3,0.06055932]
[1721031377440,0.93533778,3365.5,3365.4,0.06051374]
[1721031377608,1.60788496,3365.5,3365.4,0.06051374]
[1721031377934,1.60739974,3365.5,3365.2,0.55]
[1721031378115,0.62323077,3365.3,3365.2,0.55]
[1721031378528,0.62323077,3365.4,3365.2,0.55]
[1721031378736,0.62312972,3365.6,3365.5,1.7]
[1721031379036,0.62312972,3365.7,3365.5,2.25]
[1721031379237,0.62312972,3365.7,3365.6,0.55]
[1721031380026,0.62312972,3365.7,3365.5,1.7]
[1721031380027,2.4103,3365.7,3365.5,1.7]
[1721031380238,3.03328714,3365.7,3365.5,1.7]
[1721031381126,2.4103,3365.7,3365.5,1.7]
[1721031381325,3.03318715,3365.7,3365.5,1.7]
[1721031381519,0.62288715,3365.6,3365.5,1.7]
[1721031382258,4.51818715,3365.7,3365.5,1.7]
[1721031383460,3.03318715,3365.7,3365.6,0.0604226]
[1721031384257,2.4103,3365.7,3365.6,0.0604226]
[1721031385338,2.4103,3365.7,3365.6,1.1414226]
[1721031386470,2.89488715,3366.0,3365.9,1.7]
[1721031386637,2.272,3366.0,3365.9,2.781]
[1721031386949,2.89444825,3366.0,3365.9,2.84124504]
[1721031387445,2.89444825,3366.0,3365.9,2.781]
[1721031387643,2.89444825,3366.0,3365.9,2.84124504]
[1721031388867,2.272,3366.0,3365.9,3.39124504]
[1721031389049,4.38314825,3366.3,3365.9,3.79131128]
[1721031389243,4.38314825,3366.3,3366.2,1.081]
[1721031389449,4.38314825,3366.3,3366.2,1.14102237]
[1721031389874,3.7607,3366.3,3366.2,1.14102237]
[1721031390169,4.38314825,3366.3,3366.2,1.14102237]
[1721031390969,2.89814825,3366.3,3366.2,1.14102237]
[1721031391185,2.2757,3366.3,3366.2,1.14102237]
[1721031392580,2.7457743,3366.7,3366.6,1.7]
[1721031392581,0.62244825,3366.7,3366.6,1.7]
[1721031392764,2.41933072,3366.9,3366.6,1.7]
[1721031392765,0.62244825,3366.9,3366.6,2.781]
[1721031392959,2.41933072,3367.1,3367.0,1.7]
[1721031392960,2.10744825,3367.1,3367.0,1.7]
[1721031393156,3.8214,3367.1,3367.0,2.781]
[1721031393357,3.8214,3367.1,3367.0,2.8405932]
[1721031394500,3.8214,3367.1,3367.0,1.7595932]
[1721031395386,4.41567352,3367.1,3367.0,1.7595932]
[1721031397321,5.91567352,3367.1,3367.0,1.7595932]
[1721031397658,5.91567352,3367.1,3367.0,1.7]
[1721031397859,4.41567352,3367.1,3367.0,1.7]
[1721031398595,5.91567352,3367.1,3367.0,1.7]
[1721031399497,2.3364,3367.1,3367.0,1.7]
[1721031400064,2.3364,3367.1,3367.0,1.7593949]
[1721031406515,1.485,3367.2,3367.0,1.7593949]
[1721031406684,2.4578,3367.4,3367.1,0.55]
[1721031407313,2.4578,3367.4,3367.2,0.05920994]
[1721031411314,3.8007,3367.6,3367.5,1.7]
[1721031411705,3.8007,3367.6,3367.5,1.75902371]
[1721031414304,3.8007,3367.6,3367.5,2.83902371]
[1721031419159,1.485,3367.6,3367.5,1.75902371]
[1721031419354,3.8851,3367.6,3367.5,1.75902371]
[1721031421089,4.91253047,3367.6,3367.5,1.75902371]
[1721031421589,4.91253047,3367.6,3367.5,1.7]
[1721031421773,4.91253047,3367.6,3367.5,1.75890554]
[1721031422388,3.8851,3367.6,3367.5,1.75890554]
[1721031422568,5.451101,3367.6,3367.5,1.75890554]
[1721031422898,1.5,3367.2,3367.1,1.7]
[1721031423054,6.392291,3367.2,3367.1,1.7]
[1721031423254,6.392291,3367.2,3367.1,1.75905976]
[1721031425563,6.39238226,3367.2,3367.1,1.75905976]
[1721031426092,6.39238281,3367.2,3367.1,1.75905976]
[1721031426390,4.89238281,3367.2,3367.1,1.7]
[1721031426779,4.89238281,3367.2,3367.1,1.75905976]
[1721031427152,4.89238281,3367.2,3367.1,0.05905976]
[1721031427356,4.89238281,3367.2,3367.1,1.75905976]
[1721031428557,3.8648,3367.2,3367.1,1.75905976]
[1721031428775,4.89237098,3367.2,3367.1,1.75905976]
[1721031428971,5.68684726,3367.2,3367.1,1.75905976]
[1721031429377,6.61828235,3367.2,3367.1,0.05905976]
[1721031429559,1.5,3367.0,3366.7,1.7]
[1721031429755,3.8833,3366.8,3366.7,1.7]
[1721031430272,5.3833,3366.8,3366.7,1.7]
[1721031430565,5.53260829,3366.8,3366.7,2.78]
[1721031430769,3.8833,3366.8,3366.7,2.78]
[1721031431371,6.00490036,3366.8,3366.7,2.78]
[1721031431571,7.03257743,3366.8,3366.7,1.7]
[1721031431790,6.41097707,3366.8,3366.7,1.7]
[1721031432165,5.3833,3366.8,3366.7,1.7]
[1721031432494,5.84245381,3366.8,3366.7,2.78]
[1721031432803,4.91102129,3366.8,3366.7,2.78]
[1721031432967,3.8833,3366.8,3366.7,2.78]
[1721031433293,4.81473509,3366.8,3366.7,2.78]
[1721031434096,5.84246282,3366.8,3366.7,2.78]
[1721031434296,3.98657519,3366.8,3366.7,2.78]
[1721031434497,2.3983,3366.8,3366.7,2.78]
[1721031434795,2.3983,3366.8,3366.7,3.058]
[1721031434796,0.62245273,3366.8,3366.7,3.058]
[1721031434995,0.62245273,3366.9,3366.7,3.058]
[1721031435196,1.485,3367.0,3366.8,1.08]
[1721031435500,0.62252185,3366.9,3366.8,1.08]
[1721031435699,0.93378277,3367.0,3366.8,1.08]
[1721031436285,0.93378277,3366.9,3366.8,1.08]
[1721031436485,0.62267326,3366.9,3366.8,1.08]
[1721031437496,0.93378277,3367.0,3366.8,1.08]
[1721031438276,0.93378277,3366.9,3366.8,1.08]
[1721031438482,0.93450073,3366.9,3366.8,1.08]
[1721031438987,0.93450073,3366.9,3366.8,2.0372]
[1721031439774,0.93450073,3367.0,3366.8,2.0372]
[1721031440008,0.93450073,3367.0,3366.9,0.55]
[1721031440376,0.93450073,3367.0,3366.8,1.08]
[1721031440573,4.89270073,3367.1,3366.9,0.55]
[1721031440767,4.89270073,3367.1,3367.0,1.08]
[1721031440973,4.06145773,3367.1,3367.0,1.08]
[1721031441703,2.41948795,3367.1,3367.0,1.08]
[1721031441917,1.485,3367.1,3367.0,1.08]
[1721031442088,2.4194904,3367.1,3367.0,1.08]
[1721031443171,2.4194904,3367.1,3367.0,1.13904799]
[1721031444730,6.2745904,3367.1,3366.7,1.7]
[1721031444915,0.10325656,3367.0,3366.9,1.08]
[1721031445226,6.58608394,3367.1,3366.9,1.08]
[1721031445383,0.93456913,3367.0,3366.9,1.08]
[1721031445589,0.93457506,3367.0,3366.9,1.08]
[1721031446210,0.10326118,3367.0,3366.9,1.08]
[1721031446412,2.44446118,3367.0,3366.9,1.08]
[1721031446762,2.44446118,3367.0,3366.7,1.7]
[1721031446763,2.3412,3366.8,3366.7,1.7]
[1721031446925,3.27581356,3366.8,3366.7,1.7]
[1721031447311,2.4444685,3366.8,3366.7,1.7]
[1721031447511,3.27574725,3366.8,3366.7,1.7]
[1721031448124,2.3412,3366.8,3366.7,1.7]
[1721031448746,3.275734,3366.8,3366.7,1.7]
[1721031449252,3.27573763,3366.8,3366.7,1.7]
[1721031452260,3.22353763,3366.8,3366.7,1.7]
[1721031452924,3.419965,3366.8,3366.7,1.7]
[1721031453857,5.58685842,3366.8,3366.7,1.7]
[1721031454887,5.58687685,3366.8,3366.7,1.7]
[1721031455032,4.34083152,3366.8,3366.7,1.7]
[1721031455979,5.58681775,3366.8,3366.7,1.7]
[1721031456476,4.34083152,3366.8,3366.7,1.7]
[1721031457151,5.8983021,3366.8,3366.7,1.7]
[1721031458161,4.87078436,3366.8,3366.7,1.7]
[1721031458360,5.89854707,3366.8,3366.7,1.7]
[1721031458598,3.31311927,3366.8,3366.7,1.7]
[1721031458757,5.89839836,3366.8,3366.7,1.7]
[1721031461480,5.89851573,3366.8,3366.7,1.7]
[1721031463475,1.485,3366.3,3366.2,1.7]
[1721031463676,2.10808482,3366.3,3366.2,2.78]
[1721031463981,2.10808482,3366.3,3366.2,2.83937412]
[1721031467875,1.485,3366.3,3366.2,2.83937412]
[1721031476728,1.485,3366.3,3366.2,1.75937412]
[1721031478499,6.95718466,3366.3,3366.2,1.75937412]
[1721031478731,6.55062969,3366.3,3366.2,1.7]
[1721031478950,7.79709959,3366.3,3366.2,1.75941405]
[1721031480098,6.35422193,3366.3,3366.2,1.75941405]
[1721031480913,3.36922193,3366.3,3366.2,1.75941405]
[1721031481228,1.485,3366.4,3366.2,1.75941405]
[1721031481229,0.93472193,3366.4,3366.2,3.12335546]
[1721031481834,0.62306534,3366.4,3366.3,0.55]
[1721031482154,0.62306534,3366.4,3366.3,0.60941936]
[1721031482496,0.62306534,3366.4,3366.3,0.97675544]
[1721031484626,0.62306534,3366.5,3366.4,2.1664448]
[1721031488449,0.93472193,3366.6,3366.4,1.68937381]
[1721031488620,0.93472193,3366.6,3366.5,0.55]
[1721031489019,0.93472193,3366.6,3366.5,0.60928741]
[1721031489020,2.41972193,3366.6,3366.5,0.60928741]
[1721031489258,4.69122193,3366.6,3366.5,0.60928741]
[1721031490059,4.69122193,3366.6,3366.5,0.05928741]
[1721031490060,4.88753181,3366.6,3366.5,0.05928741]
[1721031490412,6.44551593,3366.6,3366.2,2.78]
[1721031490609,0.93532501,3366.3,3366.2,2.78]
[1721031490828,0.93532501,3366.4,3366.2,3.33]
[1721031491307,1.24710002,3366.5,3366.2,3.33]
[1721031491308,0.93532501,3366.3,3366.2,3.33]
[1721031492054,0.93532501,3366.4,3366.2,3.33]
[1721031492386,1.24710002,3366.5,3366.3,1.08]
[1721031492575,0.10327691,3366.4,3366.3,1.08]
[1721031495475,0.93566416,3366.4,3366.3,1.63]
[1721031495656,0.93566416,3366.4,3366.3,2.018]
[1721031496441,0.9356562,3366.4,3366.3,2.018]
[1721031496963,1.559427,3366.7,3366.3,2.018]
[1721031496964,1.87131524,3366.5,3366.3,2.018]
[1721031497285,1.559427,3367.0,3366.3,2.018]
[1721031497286,0.62377364,3366.6,3366.4,2.00774064]
[1721031497587,0.9356562,3366.8,3366.6,1.7]
[1721031497791,0.9356562,3366.8,3366.7,1.63]
[1721031497963,0.62358743,3366.8,3366.7,1.63]
[1721031498173,0.9356562,3366.9,3366.7,2.00671407]
[1721031498399,0.62347581,3366.8,3366.7,3.04995407]
[1721031498691,0.62347581,3367.2,3367.0,1.7]
[1721031498850,0.9356562,3367.4,3367.1,1.625306]
[1721031498851,0.62347581,3367.4,3367.1,1.625306]
[1721031499178,0.62347581,3367.4,3367.3,1.08]
[1721031499501,2.3295,3367.7,3367.4,1.7]
[1721031499650,0.62293087,3367.5,3367.4,1.7]
[1721031499853,0.62293087,3367.5,3367.4,2.78]
[1721031501177,2.41939631,3367.6,3367.4,2.78]
[1721031501390,2.10767365,3367.6,3367.4,1.7]
[1721031501885,0.62243615,3367.5,3367.4,1.7]
[1721031502480,0.93365423,3367.6,3367.4,1.7]
[1721031502789,2.3295,3367.7,3367.4,1.75665441]
[1721031502993,0.6223153,3367.5,3367.4,1.75665441]
[1721031503366,3.26297296,3367.7,3367.4,1.75665441]
[1721031503367,0.6223153,3367.6,3367.4,1.75665441]
[1721031503794,0.6223153,3367.6,3367.5,1.08]
[1721031503980,0.6223153,3367.6,3367.5,1.13660889]
[1721031505398,2.9518153,3367.7,3367.5,1.13660889]
[1721031507269,0.6223153,3367.7,3367.5,1.13660889]
[1721031507475,0.6223153,3367.9,3367.8,1.7]
[1721031507673,0.6223153,3367.9,3367.8,2.78]
[1721031508276,2.1073153,3368.0,3367.8,2.78]
[1721031508793,0.6223153,3367.9,3367.8,2.78]
[1721031509496,2.1073153,3368.0,3367.8,2.78]
[1721031510455,1.485,3368.0,3367.8,2.78]
[1721031511150,2.1073153,3368.2,3367.8,2.78]
[1721031511488,2.3132,3368.4,3368.3,1.7]
[1721031511596,2.3132,3368.4,3368.3,2.78]
[1721031511795,0.6223153,3368.6,3368.3,2.83621968]
[1721031512041,2.1073153,3369.0,3368.7,1.7]
[1721031512243,2.3139,3369.1,3368.9,1.08]
[1721031512542,1.485,3369.4,3369.3,1.7]
[1721031512845,1.485,3369.4,3369.3,1.75566146]
[1721031514946,1.485,3369.6,3369.3,1.75566146]
[1721031515819,3.746,3369.9,3369.8,1.7]
[1721031516228,3.7856,3370.3,3370.2,1.7]
[1721031516578,4.89816,3370.3,3370.2,1.75494666]
[1721031516724,3.7856,3370.3,3370.2,1.75494666]
[1721031517480,5.2856,3370.3,3370.2,0.05494666]
[1721031517964,1.485,3369.9,3369.8,1.7]
[1721031518122,1.485,3369.9,3369.8,1.75512846]
[1721031520363,5.3472,3369.9,3369.8,1.75512846]
[1721031520566,5.88192,3369.9,3369.8,1.75512846]
[1721031521254,5.88192,3369.9,3369.8,1.7]
[1721031521428,4.38192,3369.9,3369.8,1.7]
[1721031525936,2.01972,3369.9,3369.8,1.7]
[1721031526171,1.485,3369.9,3369.8,1.75507699]
[1721031527969,2.4842,3370.2,3369.8,1.75507699]
[1721031528169,1.485,3371.2,3370.8,1.7]
[1721031528535,1.485,3371.2,3370.9,0.05453548]
[1721031529236,1.485,3371.0,3370.9,0.05453548]
[1721031531135,3.9927,3371.0,3370.9,0.05453548]
[1721031531371,3.9927,3371.0,3369.4,7.41]
[1721031531372,1.5,3370.4,3369.4,7.41]
[1721031531676,1.5,3370.4,3369.3,2.95]
[1721031531677,2.4927,3370.2,3370.0,1.7]
[1721031531837,2.4927,3370.6,3370.4,1.7]
[1721031532036,1.5,3371.0,3370.4,1.7]
[1721031532037,2.985,3371.0,3370.4,1.7]
[1721031532268,1.485,3370.6,3370.4,1.7]
[1721031532675,1.485,3370.6,3370.5,0.05121073]
[1721031543132,1.485,3370.6,3370.4,1.7]
[1721031544977,2.2722,3370.5,3370.4,1.7]
[1721031545178,3.7722,3370.5,3370.4,1.7]
[1721031548415,3.7722,3370.5,3370.0,1.7]
[1721031548416,1.485,3370.1,3370.0,1.7]
[1721031548757,5.4342,3370.1,3370.0,1.7]
[1721031549251,5.4342,3370.1,3369.9,1.7]
[1721031549552,6.244652,3370.1,3369.9,1.7]
[1721031553014,2.985,3369.6,3369.5,9.11]
[1721031553225,2.985,3369.6,3369.5,1.7]
[1721031553226,5.3123,3369.6,3369.5,1.7]
[1721031553432,5.84353,3369.6,3369.5,1.7]
[1721031556229,1.5,3369.3,3369.0,4.66]
[1721031556431,3.7655,3369.1,3369.0,1.7]
[1721031556881,2.2805,3369.1,3369.0,1.7]
[1721031557091,5.2655,3369.1,3369.0,1.7]
[1721031560161,3.28919448,3369.5,3369.0,1.7]
[1721031560162,2.2694,3369.4,3369.0,1.7]
[1721031560410,1.485,3369.3,3369.0,1.7]
[1721031560718,1.485,3369.1,3369.0,1.7]
[1721031563507,1.485,3369.1,3369.0,1.75203208]
[1721031565982,0.62084158,3369.6,3369.4,1.7]
[1721031566174,3.38686237,3369.7,3369.4,1.7]
[1721031566175,2.4556,3369.7,3369.4,1.7]
[1721031566411,1.485,3369.6,3369.4,1.7]
[1721031568849,1.485,3369.6,3369.5,0.05176423]
[1721031571963,0.62084158,3369.9,3369.8,1.7]
[1721031572283,3.9147,3370.0,3369.8,1.7]
[1721031573034,1.485,3370.0,3369.9,1.079]
[1721031573238,1.485,3370.0,3369.9,1.1305824]
[1721031574304,1.485,3370.0,3369.9,0.0515824]
[1721031574644,1.485,3370.0,3369.8,1.7]
[1721031574845,1.485,3370.0,3369.9,0.0515824]
[1721031575098,1.485,3370.0,3369.8,1.7]
[1721031575268,1.485,3370.0,3369.9,0.0515824]
[1721031584305,2.1061515,3370.0,3369.9,0.0515824]
[1721031584484,5.08250938,3370.0,3369.9,0.0515824]
[1721031584691,5.39308513,3370.0,3369.9,0.0515824]
[1721031584889,4.46135788,3370.0,3369.8,1.7]
[1721031585108,0.62134656,3369.9,3369.8,1.7]
[1721031585317,5.39308513,3370.0,3369.8,1.7]
[1721031585516,0.62140763,3369.9,3369.8,1.7]
[1721031585726,0.62140426,3369.9,3369.8,1.7]
[1721031587041,4.85110639,3370.0,3369.8,1.7]
[1721031587246,0.75939149,3369.9,3369.8,1.7]
[1721031587803,4.71019149,3369.9,3369.8,1.7]
[1721031588002,2.4658,3369.8,3369.7,1.7]
[1721031588426,3.39790639,3369.8,3369.7,1.7]
[1721031588640,4.9258911,3369.8,3369.7,1.7]
[1721031589948,5.17158262,3369.8,3369.7,1.7]
[1721031590109,6.41439114,3369.8,3369.7,1.7]
[1721031590305,5.17158262,3369.8,3369.7,1.7]
[1721031590619,4.14473839,3369.8,3369.7,1.7]
[1721031590956,5.17155833,3369.8,3369.7,1.7]
[1721031591122,6.41437194,3369.8,3369.7,1.7]
[1721031591325,5.17156342,3369.8,3369.7,1.7]
[1721031591626,3.64357871,3369.8,3369.7,1.7]
[1721031591833,2.61675368,3369.8,3369.7,1.7]
[1721031592253,3.39874865,3369.8,3369.7,1.7]
[1721031592550,2.4658,3369.8,3369.7,1.7]
[1721031593158,0.93294865,3369.8,3369.7,1.7]
[1721031593314,0.93294865,3369.9,3369.7,1.7]
[1721031593923,0.93294865,3369.8,3369.7,1.7]
[1721031594146,0.93294865,3369.9,3369.7,1.7]
[1721031594440,0.93294865,3369.9,3369.8,1.079]
[1721031595017,0.93321798,3369.9,3369.8,1.079]
[1721031595219,0.62211658,3369.9,3369.8,1.079]
[1721031595469,2.3336,3370.1,3369.8,1.3569]
[1721031595648,0.6220818,3370.0,3369.8,0.32794859]
[1721031595957,0.6220818,3370.0,3369.9,1.079]
[1721031596166,0.6220818,3370.0,3369.9,1.1289871]
[1721031597450,2.1070818,3370.1,3369.9,1.1289871]
[1721031597677,0.6220818,3370.1,3369.9,1.43967581]
[1721031597839,0.6220818,3370.3,3370.1,1.7]
[1721031598041,0.6220818,3370.3,3370.1,2.779]
[1721031598257,0.6220818,3370.4,3370.2,0.04983117]
[1721031598461,0.6220818,3370.3,3370.2,0.04983117]
[1721031598770,0.6220818,3370.4,3370.2,1.12883117]
[1721031598994,0.6220818,3370.4,3370.3,1.079]
[1721031599539,0.6220818,3370.4,3370.3,1.12878572]
[1721031600437,0.62170806,3370.4,3370.3,1.12878572]
[1721031600632,0.62170806,3370.4,3370.3,1.079]
[1721031601572,2.97720806,3370.4,3370.3,1.079]
[1721031602086,2.3555,3370.4,3370.3,1.079]
[1721031602234,2.97720806,3370.4,3370.3,1.079]
[1721031606669,0.62170806,3370.4,3370.3,1.079]
[1721031606977,2.10670806,3370.5,3370.3,1.079]
[1721031607389,0.62170806,3370.4,3370.3,1.079]
[1721031608149,1.485,3370.5,3370.3,1.079]
[1721031608150,2.10670806,3370.5,3370.3,1.079]
[1721031608755,2.10670806,3370.5,3370.4,0.04964591]
[1721031608957,2.10670806,3370.5,3370.3,1.079]
[1721031609141,2.10670806,3370.5,3370.4,0.04964591]
[1721031609342,0.62170806,3370.6,3370.5,1.7]
[1721031609547,0.93256209,3370.8,3370.5,1.7]
[1721031609548,0.62170806,3370.8,3370.5,3.0569]
[1721031609775,0.62170806,3370.8,3370.7,1.079]
[1721031610549,0.62170806,3370.9,3370.7,1.079]
[1721031610753,0.62170806,3371.0,3370.9,1.7]
[1721031610949,4.77776209,3371.1,3370.9,2.779]
[1721031610950,4.46690806,3371.1,3370.9,2.779]
[1721031611296,4.46690806,3371.1,3370.9,2.82840896]
[1721031611297,3.8452,3371.1,3370.9,2.82840896]
[1721031611498,4.46690806,3371.1,3370.9,2.82840896]
[1721031612516,2.3709,3371.0,3370.9,1.74940896]
[1721031612718,5.18362507,3371.0,3370.9,1.7]
[1721031613004,5.18362507,3371.0,3370.9,1.74940896]
[1721031613421,4.56191701,3371.0,3370.9,1.7]
[1721031613623,4.56191701,3371.0,3370.9,1.74936712]
[1721031613808,4.56191701,3371.0,3370.9,1.7]
[1721031614116,5.4944791,3371.0,3370.9,1.7]
[1721031614570,2.99218769,3371.0,3370.9,1.7]
[1721031614776,2.3709,3371.0,3370.9,1.7]
[1721031615728,3.8709,3371.0,3370.9,1.7]
[1721031616023,2.99218769,3371.0,3370.9,1.7]
[1721031616197,4.49218769,3371.0,3370.9,1.7]
[1721031616374,2.99218769,3371.0,3370.9,1.7]
[1721031616566,2.3709,3371.0,3370.9,1.7]
[1721031619314,1.485,3371.1,3370.9,1.74931727]
[1721031622451,1.485,3371.1,3370.9,1.924249]
[1721031623363,3.9048,3371.3,3370.9,1.924249]
[1721031624842,1.485,3371.3,3370.9,4.512249]
[1721031625030,1.485,3371.3,3371.0,3.55]
[1721031625358,2.3962,3371.6,3371.4,1.7]
[1721031625359,1.485,3371.5,3371.4,1.7]
[1721031625861,1.485,3371.5,3371.4,1.74902432]
[1721031627269,2.985,3371.5,3371.4,1.74902432]
[1721031627580,5.4098,3371.5,3371.4,1.74902432]
[1721031627744,5.4098,3371.5,3371.4,1.7]
[1721031630835,6.10579545,3371.5,3371.4,1.7]
[1721031631039,6.72585726,3371.5,3371.4,1.7]
[1721031632270,6.10579545,3371.5,3371.4,1.7]
[1721031632589,6.02986181,3371.5,3371.4,1.7]
[1721031633949,7.36624412,3371.5,3371.4,1.7]
[1721031634251,7.05639858,3371.5,3371.4,1.7]
[1721031634486,6.4361514,3371.5,3371.4,1.7]
[1721031634691,7.05649189,3371.5,3371.4,1.7]
[1721031634992,6.4361514,3371.5,3371.4,1.7]
[1721031635601,6.51350034,3371.5,3371.4,1.7]
[1721031636104,6.10756258,3371.5,3371.4,1.7]
[1721031636393,5.48714894,3371.5,3371.4,1.7]
[1721031636593,5.4098,3371.5,3371.4,1.7]
[1721031636748,7.13396223,3371.5,3371.4,1.7]
[1721031637258,7.44424526,3371.5,3371.4,1.7]
[1721031637576,6.89170433,3371.5,3371.4,1.7]
[1721031638304,6.8917096,3371.5,3371.4,1.7]
[1721031639248,8.13284171,3371.5,3371.4,1.7]
[1721031639862,8.16035988,3371.5,3371.4,1.7]
[1721031640297,8.11220152,3371.5,3371.4,1.7]
[1721031640607,8.00223935,3371.5,3371.4,1.7]
[1721031640759,9.24484284,3371.5,3371.4,1.7]
[1721031641467,8.00223935,3371.5,3371.4,1.7]